bitfinex/quotes_ETHUSD_20250318
["timestamp","ask_amount","ask_price","bid_price","bid_amount"]
[1742268599315,3.0,1906.8,1906.7,5.24466]
[1742268599519,3.0,1906.8,1906.7,7.104197]
[1742268600354,3.0,1906.8,1906.7,5.24466]
[1742268602352,3.0,1906.7,1906.5,5.24519]
[1742268602654,7.17610546,1906.7,1906.6,5.24493]
[1742268603728,7.17610546,1906.7,1906.5,5.24509]
[1742268604954,3.0,1906.5,1906.3,5.24565]
[1742268605141,7.17610546,1906.4,1906.3,5.24565]
[1742268605732,7.17610546,1906.4,1906.1,5.24629]
[1742268606058,4.17610546,1906.2,1906.1,5.24629]
[1742268606240,7.17610546,1906.2,1906.1,5.24629]
[1742268607632,3.0,1906.2,1906.1,5.24629]
[1742268607828,3.0,1906.2,1906.1,7.583819]
[1742268608561,7.17610546,1906.2,1906.1,5.24629]
[1742268610830,3.0,1906.2,1906.1,5.24629]
[1742268613459,3.0,1906.1,1905.6,0.7636]
[1742268613790,4.17610546,1906.1,1906.0,5.24658]
[1742268614758,7.17610546,1906.3,1906.2,5.24603]
[1742268614960,7.17610546,1906.3,1906.1,5.24605]
[1742268616486,7.17610546,1906.3,1906.0,10.49306]
[1742268616773,4.17610546,1906.1,1906.0,10.49306]
[1742268617064,7.17610546,1906.3,1906.1,5.24624]
[1742268617370,8.21099076,1906.3,1906.1,5.24624]
[1742268618283,10.05433884,1906.3,1906.1,5.24624]
[1742268618680,8.21099076,1906.3,1906.2,5.24603]
[1742268618963,4.17610546,1906.3,1906.2,5.24603]
[1742268619545,6.00524,1906.2,1905.9,5.24673]
[1742268619748,4.17610546,1906.0,1905.9,5.24673]
[1742268620274,4.17610546,1906.0,1905.8,5.24711]
[1742268621471,10.18134546,1906.2,1905.9,5.24686]
[1742268622377,11.72405601,1906.2,1905.9,5.24686]
[1742268622668,3.0,1906.1,1905.9,5.24686]
[1742268623052,3.0,1906.1,1905.9,5.24677]
[1742268623252,3.0,1906.1,1905.8,10.49403]
[1742268623253,1.02701109,1906.1,1905.8,10.49403]
[1742268623454,1.02701109,1906.1,1905.5,1.3234]
[1742268623652,4.02701109,1906.1,1905.9,5.24674]
[1742268624175,4.02701109,1906.1,1905.8,10.49411]
[1742268624352,4.02701109,1906.1,1905.8,5.24699]
[1742268624555,4.17610546,1906.0,1905.8,5.24699]
[1742268624868,4.17610546,1906.0,1905.8,10.4939]
[1742268625073,4.17610546,1906.0,1905.8,5.24691]
[1742268625270,4.17610546,1906.0,1905.8,10.4939]
[1742268625465,7.17610546,1906.0,1905.9,5.24686]
[1742268631553,0.8221,1906.5,1906.0,0.8263]
[1742268631754,25.27199913,1906.7,1906.4,5.24548]
[1742268631953,7.17610546,1906.6,1906.4,5.24535]
[1742268632151,9.42120546,1906.6,1906.2,5.24589]
[1742268632467,0.94212055,1906.5,1906.3,5.24574]
[1742268632978,0.94212055,1906.5,1906.0,10.49293]
[1742268632979,3.8221,1906.3,1906.0,10.49293]
[1742268633148,3.8221,1906.3,1906.0,5.24646]
[1742268633663,3.8221,1906.3,1906.0,10.49291]
[1742268633864,3.8221,1906.3,1906.0,5.24645]
[1742268634181,15.05069546,1906.2,1905.8,5.24712]
[1742268634383,9.80440546,1906.2,1905.8,5.24701]
[1742268634682,4.55831546,1906.2,1905.9,10.49347]
[1742268634879,4.55831546,1906.2,1906.0,5.24654]
[1742268635083,4.17610546,1906.2,1906.0,10.49293]
[1742268635284,4.17610546,1906.2,1906.0,5.24639]
[1742268635482,4.56453092,1906.2,1906.0,5.24639]
[1742268635984,3.0,1906.1,1905.6,0.7835]
[1742268636186,4.17610546,1906.0,1905.8,5.24713]
[1742268636989,4.17610546,1906.0,1905.8,5.24698]
[1742268637188,7.17610546,1906.0,1905.9,5.24686]
[1742268637489,3.0,1906.0,1905.9,5.24686]
[1742268639660,7.17610546,1906.0,1905.9,5.24686]
[1742268643492,8.68141601,1906.0,1905.8,5.24698]
[1742268644367,8.68141601,1906.0,1905.7,5.24739]
[1742268644800,8.68141601,1906.0,1905.8,5.24689]
[1742268645097,8.68141601,1906.0,1905.9,5.24686]
[1742268645293,8.68141601,1906.0,1905.8,5.24689]
[1742268645598,9.71819668,1906.0,1905.8,5.24689]
[1742268647498,9.71819668,1906.0,1905.8,10.4939]
[1742268647673,9.71819668,1906.0,1905.8,5.24689]
[1742268648070,7.17610546,1906.0,1905.9,5.24686]
[1742268648802,22.31910546,1906.4,1906.3,5.24576]
[1742268648970,21.143,1906.4,1906.3,5.24576]
[1742268649303,25.31910546,1906.4,1906.3,5.24576]
[1742268651093,25.31910546,1906.4,1906.2,5.24588]
[1742268651402,25.31910546,1906.4,1906.3,5.24576]
[1742268651700,7.17610546,1906.4,1906.3,5.24576]
[1742268652311,8.00110546,1906.4,1906.2,5.24588]
[1742268652805,8.00110546,1906.4,1906.1,5.24629]
[1742268653008,7.17610546,1906.2,1906.1,6.295575]
[1742268654405,4.17610546,1906.4,1906.2,5.24593]
[1742268654729,4.17610546,1906.4,1906.2,10.49181]
[1742268655021,0.7538,1906.2,1905.9,5.24676]
[1742268655224,4.17610546,1906.0,1905.8,5.24703]
[1742268655443,3.0,1905.9,1905.7,10.49466]
[1742268655608,3.0,1905.9,1905.8,5.24714]
[1742268657029,3.0,1905.9,1905.7,5.24729]
[1742268657333,3.0,1905.9,1905.7,10.49455]
[1742268658004,3.0,1905.9,1905.8,5.24714]
[1742268658211,3.0,1905.9,1905.8,6.01634]
[1742268658399,4.17610546,1906.0,1905.9,5.24686]
[1742268658600,7.17610546,1906.0,1905.8,11.26337]
[1742268658930,7.17610546,1906.0,1905.8,5.24703]
[1742268659528,7.17610546,1906.0,1905.7,5.24737]
[1742268659995,7.17610546,1906.0,1905.7,10.49463]
[1742268660199,7.17610546,1906.0,1905.7,5.24726]
[1742268660421,7.17610546,1906.0,1905.7,10.49451]
[1742268660833,7.17610546,1906.0,1905.8,5.24711]
[1742268661032,7.17610546,1906.0,1905.8,5.24694]
[1742268661902,6.07507,1905.9,1905.6,5.24767]
[1742268662102,4.17610546,1905.8,1905.6,5.24753]
[1742268662309,4.17610546,1905.8,1905.7,5.24741]
[1742268662740,4.17610546,1905.8,1905.6,5.24748]
[1742268662904,4.17610546,1905.8,1905.7,5.24741]
[1742268663309,4.17610546,1905.8,1905.5,10.49576]
[1742268663519,9.42382546,1905.6,1905.2,6.02907]
[1742268663701,4.17610546,1905.4,1905.3,5.24851]
[1742268664342,15.20779546,1905.4,1905.1,5.25903]
[1742268664500,4.17610546,1905.2,1905.1,5.25903]
[1742268664702,13.61680601,1905.2,1905.1,0.01]
[1742268664916,3.0,1905.2,1905.1,5.25906]
[1742268665138,3.0,1905.2,1905.1,0.01]
[1742268665341,9.02469,1905.2,1905.1,0.01]
[1742268665634,5.24991,1904.8,1904.5,5.25071]
[1742268665835,5.8299,1904.7,1904.5,5.25071]
[1742268666037,5.054,1904.7,1904.6,5.25044]
[1742268666237,7.17610546,1905.0,1904.9,5.24961]
[1742268666603,4.17610546,1905.2,1905.1,5.24906]
[1742268666804,4.17610546,1905.3,1905.2,5.24861]
[1742268667123,7.17610546,1905.3,1905.2,5.24861]
[1742268668239,3.0,1905.2,1904.9,5.2496]
[1742268668470,4.17610546,1905.0,1904.8,5.24968]
[1742268668653,4.17610546,1905.0,1904.7,5.25003]
[1742268668832,4.17610546,1904.8,1904.7,5.25003]
[1742268669160,7.17610546,1904.8,1904.7,5.25003]
[1742268670168,8.66961601,1904.8,1904.5,10.50126]
[1742268670357,8.66961601,1904.8,1904.5,5.25067]
[1742268670525,3.0,1904.7,1904.5,10.50122]
[1742268670861,3.0,1904.7,1904.6,5.25044]
[1742268671067,3.0,1904.5,1904.1,5.2518]
[1742268671260,4.95840546,1904.4,1904.1,5.25168]
[1742268671570,4.95840546,1904.4,1903.5,14.49553546]
[1742268671571,0.7823,1903.4,1902.8,0.207]
[1742268671733,3.7823,1902.9,1902.5,0.07976227]
[1742268672061,0.7823,1902.6,1902.5,0.07976227]
[1742268672263,3.0,1902.7,1902.5,0.07976227]
[1742268672563,0.39139526,1903.0,1902.9,5.20513]
[1742268673169,3.0,1903.6,1903.3,5.25378]
[1742268673365,0.7823,1903.9,1903.5,5.25323]
[1742268673535,4.17610546,1903.6,1903.0,0.8083]
[1742268673734,3.0,1903.5,1903.2,5.2543]
[1742268673937,4.17610546,1903.4,1903.0,6.06299]
[1742268674261,4.17610546,1903.4,1903.1,5.25458]
[1742268674262,4.17610546,1903.2,1903.1,5.25458]
[1742268674636,4.02,1903.7,1903.6,5.2532]
[1742268674833,9.366,1904.0,1903.7,5.25281]
[1742268675031,9.366,1904.0,1903.8,5.25265]
[1742268675435,5.74712055,1904.3,1904.1,5.25155]
[1742268675436,1.28714055,1904.3,1904.1,5.25155]
[1742268675633,0.7913,1904.3,1904.1,5.25155]
[1742268675833,10.21880546,1904.3,1903.7,5.25289]
[1742268676063,4.17610546,1904.1,1903.7,5.2528]
[1742268676287,4.17610546,1904.1,1903.8,5.25255]
[1742268676462,0.7913,1904.3,1903.4,10.60862]
[1742268676663,5.57163946,1904.3,1904.0,5.25185]
[1742268676897,5.57163946,1904.3,1903.9,5.25225]
[1742268677096,3.0,1904.2,1903.9,10.50445]
[1742268677307,3.0,1904.2,1903.9,10.5044]
[1742268677599,3.0,1904.2,1904.0,5.25206]
[1742268677763,3.85716395,1904.2,1904.0,5.25198]
[1742268678287,1.395534,1904.3,1903.6,4.17610546]
[1742268678496,4.17610546,1904.2,1903.9,5.25216]
[1742268679024,7.17610546,1904.2,1903.5,1.060862]
[1742268679301,3.0,1903.7,1903.5,5.25339]
[1742268679881,4.17610546,1903.6,1903.4,5.25365]
[1742268680166,4.17610546,1903.6,1903.5,5.25348]
[1742268681799,3.7975,1903.5,1903.2,5.25411]
[1742268682098,7.17610546,1903.3,1903.2,5.25411]
[1742268682316,3.0,1903.2,1903.1,5.25454]
[1742268682477,8.25453,1903.2,1902.8,5.25541]
[1742268682805,7.17610546,1902.9,1902.7,5.25564]
[1742268683481,7.17610546,1902.9,1902.7,5.25552]
[1742268683694,3.0,1902.9,1902.8,5.25541]
[1742268684098,19.34612619,1903.7,1903.1,5.25458]
[1742268684267,4.17610546,1903.6,1903.5,5.25341]
[1742268684770,24.71312619,1903.7,1903.6,5.2532]
[1742268684966,29.41592317,1903.7,1903.6,5.2532]
[1742268685295,26.41592317,1903.7,1903.6,5.2532]
[1742268685487,23.527,1903.7,1903.6,5.2532]
[1742268685684,5.367,1903.7,1903.6,5.2532]
[1742268686384,5.367,1903.7,1903.5,5.25336]
[1742268686595,0.8267,1903.5,1902.9,0.8056]
[1742268687000,0.8267,1903.5,1903.2,5.25404]
[1742268687298,3.0,1903.4,1903.2,5.25404]
[1742268687594,0.908018,1903.4,1903.3,5.25403]
[1742268687796,3.8267,1903.5,1903.2,10.50821]
[1742268688103,9.08028,1903.5,1903.2,5.25404]
[1742268688403,4.66161782,1903.4,1903.1,10.50901]
[1742268688598,4.66161782,1903.4,1903.2,5.2543]
[1742268689369,4.66161782,1903.4,1903.1,5.25443]
[1742268689591,0.46616178,1903.3,1903.1,5.25443]
[1742268690303,0.46616178,1903.3,1903.2,5.2543]
[1742268690806,0.8267,1903.5,1903.3,5.25383]
[1742268691109,0.8267,1903.5,1903.4,5.25375]
[1742268691279,0.8267,1903.5,1903.3,5.25383]
[1742268691881,0.8267,1903.5,1903.3,10.50771]
[1742268692184,0.8267,1903.5,1903.3,5.25383]
[1742268692586,3.0,1903.4,1903.1,10.509]
[1742268692786,0.3,1903.3,1903.1,10.509]
[1742268692988,0.3,1903.3,1903.2,5.2543]
[1742268694208,9.0803,1903.5,1903.2,5.25419]
[1742268694719,9.0803,1903.5,1903.2,10.50841]
[1742268694874,9.0803,1903.5,1903.2,5.25419]
[1742268695275,0.8267,1903.5,1903.3,5.25383]
[1742268695494,6.55537,1903.5,1903.3,10.50774]
[1742268695777,5.25458,1903.1,1902.7,5.25568]
[1742268695982,13.70137782,1903.0,1902.6,10.51173]
[1742268696182,1.37013778,1902.9,1902.6,5.2558]
[1742268696405,1.37013778,1902.9,1902.6,5.25574]
[1742268696713,1.37013778,1902.9,1902.5,0.07976227]
[1742268696892,3.7849,1903.0,1902.8,5.25541]
[1742268697091,8.44651782,1903.0,1902.7,5.25568]
[1742268697415,13.70143782,1903.0,1902.7,5.25568]
[1742268697589,3.7849,1903.0,1902.8,5.25522]
[1742268697910,10.31621695,1903.2,1903.1,5.25458]
[1742268697911,8.346,1903.2,1903.1,5.25458]
[1742268698079,9.66109,1903.2,1903.1,5.25458]
[1742268698280,9.66109,1903.2,1903.0,10.50952]
[1742268698496,9.66109,1903.2,1903.1,5.25458]
[1742268698698,8.346,1903.2,1903.1,5.25458]
[1742268699053,18.26193782,1903.2,1902.8,5.25531]
[1742268699542,5.25459,1903.1,1902.7,5.25565]
[1742268699755,8.25496,1903.0,1902.7,5.25565]
[1742268700094,3.0,1902.6,1902.5,0.07976227]
[1742268701434,13.72917782,1902.6,1902.5,0.07976227]
[1742268701631,17.74917782,1902.6,1902.5,0.07976227]
[1742268701811,18.29917782,1902.6,1902.5,0.07976227]
[1742268703310,3.8116,1902.0,1901.8,5.25791]
[1742268703523,3.0,1901.8,1901.6,5.25866]
[1742268703842,3.0,1901.8,1901.6,5.25854]
[1742268704008,3.0,1901.8,1901.7,5.25845]
[1742268704204,0.8116,1902.2,1901.7,0.7962]
[1742268704400,11.3231356,1902.5,1902.2,5.25705]
[1742268704714,6.50731356,1902.4,1902.2,5.20705]
[1742268704916,8.375,1902.4,1902.3,5.25679]
[1742268705138,23.9013833,1902.7,1902.5,5.25619]
[1742268705445,23.9013833,1902.7,1902.3,5.25663]
[1742268705446,18.17,1902.7,1902.4,5.2565]
[1742268705737,3.0,1902.6,1902.5,5.25624]
[1742268705911,18.17,1902.7,1902.6,5.25596]
[1742268706480,21.17,1902.7,1902.6,5.25596]
[1742268706694,0.7861,1903.0,1902.8,5.25541]
[1742268706849,5.377,1902.9,1902.8,10.51058]
[1742268707348,5.377,1902.9,1902.7,10.51114]
[1742268707548,5.377,1902.9,1902.7,5.25554]
[1742268707743,5.377,1902.9,1902.8,5.25541]
[1742268707960,3.0,1903.0,1902.9,5.25513]
[1742268708160,8.376,1903.0,1902.9,5.25513]
[1742268708358,5.376,1903.0,1902.9,5.25513]
[1742268708746,18.174,1903.3,1903.2,5.2543]
[1742268709079,19.9914,1903.3,1903.2,5.2543]
[1742268709251,22.9914,1903.3,1903.2,5.2543]
[1742268710280,21.174,1903.3,1903.2,5.2543]
[1742268711050,18.174,1903.3,1903.2,5.2543]
[1742268711280,4.02,1903.5,1903.2,5.2543]
[1742268711281,4.02,1903.5,1903.4,5.25375]
[1742268711659,1.84975495,1903.8,1903.4,5.25375]
[1742268711975,6.1568,1903.8,1903.6,5.25307]
[1742268712144,0.61568,1903.7,1903.6,10.50608]
[1742268712347,3.61568,1903.7,1903.6,5.25301]
[1742268713490,8.27729782,1903.7,1903.6,5.25301]
[1742268713699,8.27729782,1903.7,1903.3,5.25395]
[1742268714001,3.0,1903.3,1903.1,5.25437]
[1742268714299,3.0,1903.0,1902.9,5.25513]
[1742268715167,7.66161782,1903.3,1903.1,5.25447]
[1742268716001,7.66161782,1903.3,1903.0,5.25486]
[1742268716467,7.66161782,1903.3,1903.0,5.25471]
[1742268716670,0.76616178,1903.2,1903.1,5.25458]
[1742268716870,7.66161782,1903.3,1903.1,5.25458]
[1742268717206,7.66161782,1903.3,1903.0,5.25485]
[1742268717499,7.66161782,1903.3,1902.9,5.25496]
[1742268717500,12.91576782,1903.3,1902.9,5.25496]
[1742268717701,12.91576782,1903.3,1902.9,10.50992]
[1742268718002,12.91576782,1903.3,1902.9,5.25496]
[1742268718201,1.29157678,1903.2,1902.9,10.50997]
[1742268718385,1.29157678,1903.2,1903.0,5.25484]
[1742268718779,1.29157678,1903.2,1903.1,5.25458]
[1742268719184,3.0,1903.3,1903.2,5.2543]
[1742268720103,3.0,1903.3,1903.0,5.25476]
[1742268720288,7.66161782,1903.3,1903.0,5.25475]
[1742268720493,7.66161782,1903.3,1903.0,10.50946]
[1742268721005,4.66161782,1903.3,1903.0,10.50946]
[1742268721219,4.66161782,1903.3,1903.0,5.25471]
[1742268721220,0.46616178,1903.2,1903.0,5.25471]
[1742268721817,9.91634782,1903.1,1902.7,5.25559]
[1742268722116,5.347,1903.0,1902.9,5.25513]
[1742268722307,8.347,1903.0,1902.9,5.25513]
[1742268722512,5.347,1903.0,1902.9,5.25513]
[1742268722889,5.345,1903.1,1903.0,5.25486]
[1742268723083,6.47346796,1903.1,1903.0,5.25486]
[1742268724422,9.47346796,1903.1,1903.0,5.25486]
[1742268725004,1.04047642,1903.5,1903.2,0.751]
[1742268725201,1.04047642,1903.5,1903.4,5.25375]
[1742268725202,3.0,1903.5,1903.4,5.25375]
[1742268726927,7.66161782,1903.5,1903.2,5.25422]
[1742268727131,7.66161782,1903.5,1903.3,5.25402]
[1742268727828,7.66161782,1903.5,1903.4,5.25375]
[1742268727999,6.11756178,1903.5,1903.4,5.25375]
[1742268730529,6.11756178,1903.5,1903.3,5.25402]
[1742268730731,0.7954,1903.4,1903.1,5.25448]
[1742268731037,4.66161782,1903.3,1903.0,5.25484]
[1742268731328,9.04926,1903.4,1903.0,5.25484]
[1742268731329,3.0,1903.1,1903.0,5.25484]
[1742268731706,5.329,1903.2,1903.0,5.25484]
[1742268731925,8.329,1903.2,1903.1,5.25458]
[1742268732107,3.0,1903.4,1903.1,5.25458]
[1742268732332,3.0,1903.4,1903.3,5.25403]
[1742268732535,5.27729782,1903.7,1903.3,0.7935]
[1742268732710,0.61568,1903.7,1903.6,5.2532]
[1742268733221,24.58066298,1903.9,1903.7,5.25269]
[1742268733222,18.17,1903.9,1903.7,5.25269]
[1742268733425,3.0,1903.8,1903.7,5.25269]
[1742268735547,3.0,1903.8,1903.7,6.08529]
[1742268735750,3.0,1903.8,1903.7,5.25269]
[1742268735909,3.8093,1903.8,1903.7,5.25292]
[1742268736107,6.47339178,1903.8,1903.7,5.25292]
[1742268736429,6.47339178,1903.8,1903.6,10.50612]
[1742268736746,3.0,1904.0,1903.9,5.25234]
[1742268737405,4.8293,1904.3,1903.9,5.25237]
[1742268737611,9.347,1904.3,1904.2,5.25154]
[1742268737805,5.327,1904.3,1904.2,5.25154]
[1742268738024,3.0,1904.3,1904.2,5.25154]
[1742268738220,18.168,1904.5,1904.3,5.25106]
[1742268738414,18.168,1904.5,1904.3,10.50221]
[1742268738415,1.8168,1904.4,1904.3,10.50221]
[1742268738640,0.8246,1904.9,1904.6,5.2504]
[1742268738849,0.8246,1904.9,1904.6,10.50068]
[1742268739206,0.8246,1904.9,1904.6,5.25028]
[1742268739406,0.8246,1904.9,1904.7,5.25014]
[1742268739609,0.8246,1904.9,1904.6,5.25038]
[1742268739809,6.1526,1904.9,1904.6,5.25038]
[1742268740054,0.61526,1904.8,1904.6,5.25038]
[1742268740234,10.52678782,1904.8,1904.3,5.25103]
[1742268740429,3.0,1904.4,1904.1,6.01924]
[1742268740632,3.0,1904.5,1904.1,6.01923]
[1742268740830,3.0,1904.3,1904.0,5.25209]
[1742268741038,0.3,1904.2,1904.0,5.25209]
[1742268741735,0.3,1904.2,1904.0,10.50401]
[1742268741937,0.3,1904.2,1904.0,5.25192]
[1742268742239,0.3,1904.2,1904.1,5.25182]
[1742268743042,9.1194,1904.5,1904.2,5.25143]
[1742268743247,9.91263782,1904.4,1904.1,5.25177]
[1742268743625,9.91263782,1904.4,1904.0,5.25201]
[1742268743826,9.91335782,1904.2,1903.8,0.8111]
[1742268744027,7.66161782,1904.0,1903.7,5.25291]
[1742268744231,7.66161782,1904.0,1903.6,5.25318]
[1742268744431,5.2524,1903.9,1903.6,5.25318]
[1742268744740,5.2524,1903.9,1903.5,11.31935]
[1742268744941,5.2524,1903.9,1903.6,5.2532]
[1742268745138,0.52524,1903.8,1903.6,5.2532]
[1742268745343,3.0,1903.7,1903.4,5.25366]
[1742268745853,3.0,1903.7,1903.4,5.25359]
[1742268746019,3.0,1903.7,1903.5,5.25345]
[1742268746349,13.50502,1903.9,1903.5,5.25345]
[1742268746542,5.25267,1903.8,1903.5,5.25345]
[1742268746740,0.525267,1903.7,1903.5,5.25345]
[1742268747065,0.525267,1903.7,1903.4,5.25359]
[1742268747386,5.25352,1903.5,1903.1,5.25455]
[1742268747537,5.25352,1903.5,1903.1,10.50896]
[1742268747721,7.07035578,1903.5,1903.1,10.50896]
[1742268748424,7.07035578,1903.5,1902.8,10.56839]
[1742268748425,10.73894782,1903.2,1902.2,5.25692]
[1742268748767,3.0,1903.0,1902.8,5.25518]
[1742268749223,3.0,1903.0,1902.9,5.25513]
[1742268749624,3.0,1903.0,1902.8,6.04018]
[1742268749846,3.0,1903.0,1902.9,5.25513]
[1742268750354,3.823,1903.2,1903.0,5.25484]
[1742268750566,5.83261488,1903.2,1903.0,5.25484]
[1742268750740,5.83261488,1903.2,1902.9,10.51009]
[1742268750944,5.00961488,1903.2,1903.0,5.25482]
[1742268751183,5.00961488,1903.2,1902.9,5.25496]
[1742268752101,5.00961488,1903.2,1903.0,10.50932]
[1742268752419,9.319,1903.4,1902.9,5.25511]
[1742268752577,5.299,1903.4,1903.3,5.25403]
[1742268752917,5.299,1903.4,1903.2,5.25426]
[1742268753117,3.0,1903.3,1903.2,5.25426]
[1742268755075,3.0,1903.3,1903.2,5.2543]
[1742268755595,3.0,1903.3,1903.1,5.25439]
[1742268756248,3.0,1903.3,1903.2,5.2543]
[1742268756623,5.25443,1903.2,1902.7,5.25544]
[1742268756926,3.0,1903.1,1902.8,5.25529]
[1742268757075,3.0,1903.1,1902.8,5.25527]
[1742268757508,8.25467,1903.1,1902.8,5.25527]
[1742268757708,10.60203078,1903.1,1902.8,5.25527]
[1742268758277,5.34736078,1903.1,1902.8,10.51052]
[1742268758616,3.0,1903.1,1903.0,5.25486]
[1742268759402,3.0,1903.1,1902.9,6.08742]
[1742268759809,3.0,1903.1,1902.9,11.34241]
[1742268760113,3.0,1903.1,1902.9,11.34231]
[1742268760407,3.0,1903.1,1902.9,11.34232]
[1742268760599,3.0,1903.1,1903.0,5.25486]
[1742268760981,3.0,1903.2,1903.1,10.50887]
[1742268761309,13.43214838,1903.5,1903.1,10.50886]
[1742268761522,3.0,1903.4,1903.2,5.25427]
[1742268761696,1.0648226,1903.5,1903.3,5.25403]
[1742268761896,4.98181864,1903.5,1903.3,5.25403]
[1742268762096,3.0,1903.4,1903.3,5.25403]
[1742268762307,3.0,1903.5,1903.4,5.25375]
[1742268762521,18.165,1903.6,1903.5,5.25348]
[1742268762722,14.69724782,1904.0,1903.6,5.25311]
[1742268762922,3.0,1903.8,1903.6,5.25311]
[1742268763125,3.0,1903.8,1903.5,5.25345]
[1742268763304,3.0,1903.6,1903.4,5.25369]
[1742268763508,3.0,1903.8,1903.6,5.25308]
[1742268763806,14.69706782,1904.0,1903.7,5.25284]
[1742268763807,6.0563,1904.0,1903.7,5.25284]
[1742268764010,3.0,1903.9,1903.8,5.25249]
[1742268764336,3.0,1904.0,1903.8,10.50498]
[1742268764653,24.4606231,1904.3,1903.9,10.50444]
[1742268764835,27.25861709,1904.3,1903.9,10.50444]
[1742268765002,3.0,1904.2,1904.0,5.25205]
[1742268765205,3.0,1904.2,1904.0,5.25196]
[1742268765531,27.25860709,1904.3,1904.0,5.25196]
[1742268765699,22.00732709,1904.3,1904.2,5.25154]
[1742268765900,22.00732709,1904.3,1903.9,5.25226]
[1742268766106,4.66161782,1904.4,1903.9,5.25237]
[1742268766307,1.88589807,1904.5,1904.2,5.25143]
[1742268766508,5.25104,1904.4,1904.1,5.25182]
[1742268766719,3.0,1904.3,1904.1,5.25182]
[1742268767636,3.0,1904.4,1904.1,10.50344]
[1742268767825,4.01367281,1904.4,1904.1,10.50344]
[1742268768328,4.01367281,1904.4,1904.2,10.50285]
[1742268768512,3.0,1904.5,1904.3,5.25125]
[1742268768917,3.0,1904.5,1904.3,10.50239]
[1742268769247,3.0,1904.5,1904.4,5.25099]
[1742268769407,3.0,1904.5,1904.3,5.25118]
[1742268769607,8.47241782,1904.4,1903.9,0.7516]
[1742268769810,5.25141,1904.3,1903.9,0.7516]
[1742268770303,3.0,1904.2,1903.9,6.00391]
[1742268770506,3.0,1904.2,1903.9,6.00381]
[1742268770740,3.0,1904.2,1903.9,11.25601]
[1742268771038,3.0,1904.2,1903.9,6.0038]
[1742268771247,8.25155,1904.2,1903.9,0.7516]
[1742268771411,8.25155,1904.2,1903.8,5.25265]
[1742268771616,19.51524382,1904.2,1903.8,5.25265]
[1742268771859,14.26346382,1904.2,1903.8,5.25265]
[1742268772307,5.25183,1904.1,1903.7,6.01946]
[1742268772507,5.2521,1904.0,1903.7,6.01946]
[1742268773526,11.93024438,1904.1,1903.7,6.01946]
[1742268773731,6.67826438,1904.1,1903.7,11.27221]
[1742268774352,6.67826438,1904.1,1903.7,11.27222]
[1742268774640,5.25189,1904.1,1903.7,11.27221]
[1742268775006,5.25189,1904.1,1903.7,11.27219]
[1742268775413,10.5039,1904.1,1903.7,6.01944]
[1742268775640,3.0,1903.9,1903.7,6.01944]
[1742268775832,3.0,1903.9,1903.6,5.25305]
[1742268776421,3.907001,1903.9,1903.3,6.04071]
[1742268776750,5.25302,1903.7,1903.3,6.04071]
[1742268776939,5.25359,1903.5,1903.1,10.50882]
[1742268777137,5.25359,1903.5,1903.1,5.25441]
[1742268777337,5.25387,1903.4,1903.1,5.25441]
[1742268777642,3.0,1903.3,1903.1,5.25441]
[1742268778052,3.0,1903.3,1903.1,10.50883]
[1742268778417,3.0,1903.3,1903.1,5.25441]
[1742268778636,3.0,1903.3,1903.1,10.50885]
[1742268778945,3.0,1903.3,1903.1,5.25441]
[1742268779327,3.0,1903.3,1903.1,10.50888]
[1742268779851,3.0,1903.3,1903.2,5.2543]
[1742268780161,6.13850524,1903.7,1903.5,5.25343]
[1742268780162,1.07476044,1903.7,1903.5,5.25343]
[1742268780347,3.0,1903.7,1903.5,5.25326]
[1742268780841,3.0,1903.7,1903.4,5.25374]
[1742268781033,8.25302,1903.7,1903.4,5.25374]
[1742268782051,3.0,1903.5,1903.3,0.7596]
[1742268782351,5.25384,1903.4,1903.1,5.25441]
[1742268783142,8.25363,1903.5,1903.1,10.50875]
[1742268783347,3.0,1903.5,1903.3,5.25401]
[1742268783543,3.0,1903.5,1903.3,5.25389]
[1742268783715,3.0,1903.5,1903.3,5.779269]
[1742268783915,3.0,1903.5,1903.3,10.50776]
[1742268784143,10.52895,1903.7,1903.4,5.25375]
[1742268784448,5.25295,1903.7,1903.4,5.25375]
[1742268784651,15.35009,1903.8,1903.4,10.50726]
[1742268784819,11.33009,1903.8,1903.5,5.25346]
[1742268785146,5.25303,1903.7,1903.4,5.25351]
[1742268785335,5.25303,1903.7,1903.3,11.33061]
[1742268785539,5.25303,1903.7,1903.4,5.25375]
[1742268785946,11.33006,1903.8,1903.4,5.25375]
[1742268786146,11.33006,1903.8,1903.4,10.50732]
[1742268786347,9.91403782,1903.9,1903.5,5.25344]
[1742268786553,5.2519,1904.1,1903.7,0.7781]
[1742268786849,10.67299782,1904.2,1903.8,5.25262]
[1742268787152,5.25141,1904.3,1903.9,5.25216]
[1742268787351,9.91331782,1904.2,1903.8,5.25261]
[1742268787522,9.91331782,1904.2,1903.8,10.50508]
[1742268787725,15.16503782,1904.2,1903.8,5.25247]
[1742268788030,9.91331782,1904.2,1903.8,11.633364]
[1742268788436,4.06536611,1904.3,1904.0,5.252]
[1742268788629,3.0,1904.3,1904.0,5.252]
[1742268788814,8.25137,1904.3,1904.0,5.252]
[1742268789019,5.43611782,1904.4,1903.8,1.128344]
[1742268789249,4.66161782,1904.8,1904.6,5.25044]
[1742268789451,4.66161782,1905.0,1904.7,5.25002]
[1742268789624,0.94966178,1905.0,1904.8,5.24978]
[1742268789833,0.815,1905.1,1904.8,5.24978]